Workbook

Sheet Opening Document
B2: UPON OPENING DOCUMENT…
B27: IF THE RED BANNER OCCURS….
B39: 1. DOWNLOAD DOCUMENT AND SAVE TO DESKTOP
B40: 2. RIGHT CLICK, PROPERTIES
B53: 3. CHECK OFF UNBLOCK, CLICK APPLY, CLICK OK
B54: 4. REOPEN EXCEL WORKBOOK
B55: 5. IF NEEDED, ENABLE EDITING, ENABLE CONTENT

Sheet Budget Summary
A2: Attachment A - Budget Worksheet
A19: FY2024 Commonwealth Restorative Justice Community Grant
A21: Cost Categories | C21: Cash Expenditures
A24: Personnel Costs | C24: ='Budget Detail'!E16 -> 0
A26: Fringe Benefit Costs | C26: ='Budget Detail'!E26 -> 0
A28: Indirect Costs | C28: ='Budget Detail'!E36 -> 0
A30: Consultants Costs | C30: ='Budget Detail'!E46 -> 0
A32: Consultants Costs | C32: ='Budget Detail'!E56 -> 0
A34: Travel Costs | C34: ='Budget Detail'!E66 -> 0
A36: Equipment Costs | C36: ='Budget Detail'!E76 -> 0
A38: Supplies Costs | C38: ='Budget Detail'!E86 -> 0
A40: Other Costs | C40: ='Budget Detail'!E96 -> 0
A42: Total Costs | C42: =C24+C26+C28+C30+C32+C34+C36+C38+C40 -> 0
A45: Name of Applicant Organization

Sheet Budget Detail
A1: Executive Office of Public Safety and Security
A2: Office of Grants and Research
A3: FY2024 Commonwealth Restorative Justice Community Grant
A4: =CONCATENATE("Attachment A - ", 'Budget Summary'!B45) -> Attachment A -
A6: INSTRUCTIONS: This is a macro-enabled document. Please make sure that you read the instructions on the Opening Document tab upon opening this document to make sure that macros are enabled macros. The items marked as Example are only examples, and do not necessarily reflect items in your requested budget. Please note that the subtotals will auto-populate based on the numbers reported within each category. Your requested budget per cost category shall be entered in the rows below the Examples using the "Add" command button to add another row if needed. If you have any questions, please contact the Restorative Justice (RJ) grant manager assigned in the Availability of Grant Funds (AGF) document.
A7: An applicant must be a nonprofit 501(c)(3) organization and provide community-based restorative justice programs, working with low-income communities within the Commonwealth of Massachusetts. Priority will be given to FY2023 awardees. Due to level funding, we are encouraging applicants to apply for between $20,000.00 and $40,000.00. Please read the Availability of Grant Funds (AGF) document. This will outline key dates, funding criteria, allowable and unallowable costs. Cost category definitions are highlighted in the Allowable Costs tab. All fringe and indirect rate agreements reported below must be consistent with how they will reported during the quarterly/monthly reimbursements. If these rates change during the grant period, please contact your RJ grant manager.
A9: PERSONNEL
A11: Employee Name | B11: Pay Rate | C11: Quantity | D11: Description | E11: Cash Expenditures
A12: Example: Sue Smith | B12: 23.4875 | C12: 300 | D12: Employee is projected to work a total of 300 hours during the grant at $23.4875/hr. | E12: =IF(B12="","",ROUND(ROUND(B12,4)*ROUND(C12,4),2)) -> 7046.25
A13: Example: Tracey Thomas | B13: 1730.77 | C13: 6 | D13: Please describe duties of Employee here. | E13: =IF(B13="","",ROUND(ROUND(B13,4)*ROUND(C13,4),2)) -> 10384.62
A16: Subtotal: | E16: =SUM(OFFSET(Personnel,5,4):OFFSET(Fringe,-4,4)) -> 0
A19: FRINGE AND PAYROLL TAX
A21: Employee Name | B21: Wages Applied to Fringe | C21: Contract Fringe Rate | D21: Description | E21: Cash Expenditures
A22: Example: Sue Smith | B22: 7046.25 | C22: 0.21 | D22: Per the fringe rate agreement, find the applicable cost categories to apply fringe to. In this example, the applicable cost category is "Personnel." Take Sue Smith's total wages reported on this worksheet under the "Personnel" section and multiply by the federally approved fringe rate or the fringe rate that was proposed and approved by OGR in the application process. ($7,046.25 * 21%). Match expenditures should be in relation to the match in the applicable category. | E22: =IF(B22="","",ROUND(ROUND(B22,4)*ROUND(C22,6),2)) -> 1479.71
A23: Example: Tracey Thomas | B23: 10384.62 | C23: 0.1 | D23: Per the fringe rate agreement, find the applicable cost categories to apply fringe to. In this example, the applicable cost category is "Personnel." Take Tracey Thomas' total wages reported on this worksheet under the "Personnel" section and multiply by the breakout of what rates are being charged per eligible cost. (7.5% - health insurance, 2% - life insurance, .5% - workers compensation). | E23: =IF(B23="","",ROUND(ROUND(B23,4)*ROUND(C23,6),2)) -> 1038.46
E24: =IF(B24="","",ROUND(ROUND(B24,4)*ROUND(C24,6),2)) -> 
E25: =IF(B25="","",ROUND(ROUND(B25,4)*ROUND(C25,8),2)) -> 
A26: Subtotal: | E26: =SUM(OFFSET(Fringe,5,4):OFFSET(Indirect,-4,4)) -> 0
A29: INDIRECT COSTS
A31: Employee Name | B31: Expenses Applied to Indirect Rate | C31: Contract Indirect Rate | D31: Description | E31: Cash Expenditures
A32: Example: Sue Smith | B32: 8525.96 | C32: 0.18 | D32: The federally approved rate of "18%" times allowable expenses per contract. If allowable expenses are all categories, take the sum of all categories and multiply by the federally approved rate. If allowable expenses are only Personnel and Fringe like in this example, take the approved rate and multiply by the sum of Personnel and Fringe total costs associated with Sue Smith. (18% * (7046.25 + 1479.71)). | E32: =IF(B32="","",ROUND(ROUND(B32,4)*ROUND(C32,6),2)) -> 1534.67
A33: Example: Tracey Thomas | B33: 11423.08 | C33: 0.18 | D33: The federally approved rate of "18%" times allowable expenses per contract. If allowable expenses are all categories, take the sum of all categories and multiply by the federally approved rate. If allowable expenses are only Personnel and Fringe like in this example, take the approved rate and multiply by the sum of Personnel and Fringe total costs associated with Tracey Thomas. (18% * (10,384.62 + 1,038.46)). | E33: =IF(B33="","",ROUND(ROUND(B33,4)*ROUND(C33,6),2)) -> 2056.15
E35: =IF(B35="","",ROUND(ROUND(B35,4)*ROUND(C35,8),2)) -> 
A36: Subtotal: | E36: =SUM(OFFSET(Indirect,5,4):OFFSET(Contractors,-4,4)) -> 0
A39: CONSULTANTS
A41: Consultant Name | B41: Pay Rate | C41: Quantity | D41: Description | E41: Cash Expenditures
A42: Example: JJ Counseling | B42: 200 | C42: 24 | D42: Counseling of domestic violence survivors; $200 per day x 24 days. Submitting reimbursement for $2,800. | E42: =IF(B42="","",ROUND(ROUND(B42,4)*ROUND(C42,4),2)) -> 4800
A43: Example: JJ Counseling | B43: 45 | C43: 210 | D43: Please describe purpose of Consultant here. | E43: =IF(B43="","",ROUND(ROUND(B43,4)*ROUND(C43,4),2)) -> 9450
A46: Subtotal: | E46: =SUM(OFFSET(Contractors,5,4):OFFSET(Subawards,-4,4)) -> 0
A49: CONTRACTS & SUBAWARDS
A51: Contracts/Subawards Name | B51: Pay Rate | C51: Quantity | D51: Description | E51: Cash Expenditures
A52: Example: JJ Counseling | B52: 200 | C52: 24 | D52: Counseling of domestic violence survivors; $200 per day x 24 days. Submitting reimbursement for $2,800. | E52: =IF(B52="","",ROUND(ROUND(B52,4)*ROUND(C52,4),2)) -> 4800
A53: Example: JJ Contracts | B53: 50 | C53: 160 | D53: Please describe purpose of Contract/Subaward here. | E53: =IF(B53="","",ROUND(ROUND(B53,4)*ROUND(C53,4),2)) -> 8000
E54: =IF(B54="","",ROUND(ROUND(B54,4)*ROUND(C54,4),2)) -> 
A56: Subtotal: | E56: =SUM(OFFSET(Subawards,5,4):OFFSET(Travel,-4,4)) -> 0
A59: TRAVEL
A61: Employee Name | B61: Rate | C61: Quantity | D61: Description | E61: Cash Expenditures
A62: Example: Sue Smith | B62: 250 | C62: 1 | D62: Gas reimbursement related to grant. | E62: =IF(B62="","",ROUND(ROUND(B62,4)*ROUND(C62,4),2)) -> 250
A63: Example: Tracey Thomas | B63: 0.62 | C63: 500 | D63: Travel related to grant; $0.62/mile x 500 miles | E63: =IF(B63="","",ROUND(ROUND(B63,4)*ROUND(C63,4),2)) -> 310
E64: =IF(B64="","",ROUND(ROUND(B64,4)*ROUND(C64,4),2)) -> 
A66: Subtotal: | E66: =SUM(OFFSET(Travel,5,4):OFFSET(Equipment,-4,4)) -> 0
A69: EQUIPMENT
A71: Equipment | B71: Cost | C71: Quantity | D71: Description | E71: Cash Expenditures
A72: Example: Laptop | B72: 1200 | C72: 1 | D72: Please describe purpose of Equipment here. | E72: =IF(B72="","",ROUND(ROUND(B72,4)*ROUND(C72,4),2)) -> 1200
A73: Example: Computer Keyboard | B73: 50 | C73: 3 | D73: Replacement keyboard, IBM part #872021. (3) keyboards at $50/each | E73: =IF(B73="","",ROUND(ROUND(B73,4)*ROUND(C73,4),2)) -> 150
E74: =IF(B74="","",ROUND(ROUND(B74,4)*ROUND(C74,4),2)) -> 
A76: Subtotal: | E76: =SUM(OFFSET(Equipment,5,4):OFFSET(Supplies,-4,4)) -> 0
A79: SUPPLIES
A81: Supplies/Company | B81: Cost | C81: Quantity | D81: Description | E81: Cash Expenditures
A82: Example: Copy Paper | B82: 50 | C82: 4 | D82: Please describe purpose of Supplies here. | E82: =IF(B82="","",ROUND(ROUND(B82,4)*ROUND(C82,4),2)) -> 200
A83: Example: ABC Office Supply | B83: 75 | C83: 1 | D83: 1 lot of office supplies (pens, staples, paperclips), $75/lot | E83: =IF(B83="","",ROUND(ROUND(B83,4)*ROUND(C83,4),2)) -> 75
A86: Subtotal: | E86: =SUM(OFFSET(Supplies,5,4):OFFSET(Other,-4,4)) -> 0
A89: OTHER
A91: Item/Company | B91: Cost | C91: Quantity | D91: Description | E91: Cash Expenditures
A92: Example: Telephone | B92: 65 | C92: 6 | D92: Please describe purpose of item/activity here. | E92: =IF(B92="","",ROUND(ROUND(B92,4)*ROUND(C92,4),2)) -> 390
A93: Example: Heat | B93: 6000 | C93: 0.25 | D93: Projected total bill for office during grant period is $6,000.00; this program is 1/4 of office space | E93: =IF(B93="","",ROUND(ROUND(B93,4)*ROUND(C93,4),2)) -> 1500
E94: =IF(B94="","",ROUND(ROUND(B94,4)*ROUND(C94,4),2)) -> 
A96: Subtotal: | E96: =SUM(OFFSET(Other,5,4):OFFSET(GrandTotal,-3,4)) -> 0
A98: Grand Total: | E98: =ROUND(SUM(E16+E26+E36+E46+E56+E66+E76+E86+E96),2) -> 0

Sheet Allowable Costs
A1: Allowable Budget Cost Categories | B1: Definitions and Documentation Requirements
A2: Personnel Costs | B2: Full or part-time regular salaried employees working on the grant.
B3: A copy of staff resume(s) and/or job description(s) must be included in the applicant’s response. Overtime is not permitted with these funds.
A4: Fringe Benefit Costs | B4: Eligible costs include the employer share of the following:
B5: · Life insurance
B6: · Health insurance
B7: · Social security costs
B8: · Pension costs
B9: · Unemployment insurance costs
B10: · Workers compensation insurance
B11: Cost amounts for direct fringe benefits can be either actual costs or rates per employee calculated by the fiscal or human resource unit in your organization (rate computations must be included).
B12: Include copy of approved rate agreement with your application.
A13: Indirect Costs | B13: Federally negotiated and approved rate for costs that are not readily assignable to a particular project, but are necessary to the operation or maintenance of the organization and performance of the project. Include copy of federally-approved rate or, if the organization does not have one, an applicant can use the de minimis rate of 10%.
A14: Consultants | B14: Consultants are individuals hired to provide a service and possess expertise (restorative justice trainer, speakers, etc.). The maximum rate for consultants is $650 for an eight-hour day or $81.25 per hour (excluding travel and subsistence costs).
A15: Contracts/Subawards | B15: List subawards, such as contracts to partnering agencies/organizations.
A16: Equipment/Technology | B16: Tangible, non-expendable personal property directly supporting the program and having a useful life of more than one year; cost based on classification of equipment.
A17: Travel | B17: Costs associated with attending meetings from your base to community forums, training, etc. The maximum allowable rate for mileage reimbursement is .62 per mile. No out of state travel is permitted.
A18: Supplies | B18: Supplies required for the program (e.g., postage, training materials, copying paper, centerpiece, talking piece, and other expendable items such as books, ink, etc.).
A19: Other Costs | B19: Items (e.g., rent costs, telephone costs, etc.)
B20: Reasonable food and beverage costs for circle group meetings is permitted Food costs will be strictly scrutinized and need to be preapproved by OGR prior to purchase.
A24: Unallowable Costs
A25: No grant funds may be spent for the following:
A26: · Prizes/rewards/trinkets, gift cards (or any type of monetary incentive), and
A27: · Construction, real estate, luxury items and vehicles, including insurance, or leasing.
